bitfinex-derivatives/quotes_SOLF0:USTF0_20260108
["timestamp","ask_amount","ask_price","bid_price","bid_amount"]
[1767916250510,5.27523305,138.53,138.47,7.62117889]
[1767916250711,5.27523305,138.52,138.47,7.62117889]
[1767916251010,7.53445105,138.54,138.47,7.62117889]
[1767916251310,5.27554687,138.53,138.47,7.62117889]
[1767916251510,5.27554687,138.52,138.47,7.62117889]
[1767916251813,7.53445105,138.54,138.47,7.62117889]
[1767916252012,5.27565578,138.53,138.47,7.62117889]
[1767916252212,5.27565578,138.52,138.48,1.11587889]
[1767916252510,7.53445105,138.54,138.48,1.11587889]
[1767916252711,5.27597152,138.53,138.48,1.11587889]
[1767916252911,5.27597152,138.52,138.48,1.11587889]
[1767916253113,7.53445105,138.54,138.48,1.11587889]
[1767916253313,5.27633347,138.53,138.48,1.11587889]
[1767916253615,5.27633347,138.52,138.48,1.11587889]
[1767916253817,5.27633347,138.51,138.48,1.11587889]
[1767916254007,7.53445105,138.54,138.48,1.11587889]
[1767916254208,5.29887342,138.53,138.48,1.11587889]
[1767916254414,5.29887342,138.52,138.48,1.11587889]
[1767916254713,5.29887342,138.51,138.48,1.11587889]
[1767916254906,7.53445105,138.54,138.48,1.11587889]
[1767916255102,5.29928047,138.53,138.48,1.11587889]
[1767916255307,5.29928047,138.52,138.48,1.11587889]
[1767916255509,5.29928047,138.51,138.48,1.11587889]
[1767916255814,1.03235105,138.53,138.48,1.11587889]
[1767916256016,5.29976914,138.52,138.48,1.11587889]
[1767916256316,5.29976914,138.51,138.48,1.11587889]
[1767916256516,1.03235105,138.53,138.48,1.11587889]
[1767916256708,5.30031323,138.52,138.48,1.11587889]
[1767916256908,5.30031323,138.51,138.48,1.11587889]
[1767916257217,1.03235105,138.53,138.48,1.11587889]
[1767916257514,5.30096013,138.52,138.48,1.11587889]
[1767916257714,5.30096013,138.51,138.48,1.11587889]
[1767916257916,1.03235105,138.53,138.48,1.11587889]
[1767916258115,5.30065849,138.52,138.48,1.11587889]
[1767916258316,5.30065849,138.51,138.48,1.11587889]
[1767916258517,1.03235105,138.53,138.48,1.11587889]
[1767916258716,5.30141999,138.52,138.48,1.11587889]
[1767916258920,5.30141999,138.51,138.48,1.11587889]
[1767916259107,1.03235105,138.53,138.48,1.11587889]
[1767916259311,5.30370545,138.52,138.48,1.11587889]
[1767916259528,0.96866736,138.51,138.48,1.11587889]
[1767916259817,6.5021,138.54,138.48,1.11587889]
[1767916260020,1.03235105,138.53,138.48,1.11587889]
[1767916261627,1.03235105,138.52,138.46,7.62167889]
[1767916263417,1.10476187,138.51,138.44,7.54353777]
[1767916264618,1.10476187,138.49,138.44,7.54353777]
[1767916269331,1.10476187,138.49,138.44,1.03713777]
[1767916279237,1.10476187,138.49,138.44,7.54373777]
[1767916279640,1.10476187,138.49,138.44,6.5066]
[1767916280740,1.08283123,138.46,138.39,1.06722317]
[1767916281337,1.08283123,138.44,138.39,1.06722317]
[1767916282540,1.08283123,138.44,138.39,7.57632317]
[1767916283448,1.08283123,138.44,138.39,1.06722317]
[1767916283949,1.08283123,138.44,138.36,14.25403055]
[1767916284741,1.08283123,138.42,138.36,14.25403055]
[1767916287957,7.59063123,138.42,138.36,14.25403055]
[1767916289061,1.08283123,138.41,138.36,14.25403055]
[1767916289950,7.59143123,138.41,138.36,13.18680738]
[1767916290564,1.08283123,138.4,138.36,2.00000738]
[1767916291952,104.15154691,138.43,138.36,2.00000738]
[1767916291953,1.08283123,138.42,138.37,1.06722317]
[1767916292148,1.08283123,138.42,138.36,2.00000738]
[1767916292562,7.5777956,138.41,138.36,2.00000738]
[1767916292858,7.5777956,138.41,138.36,3.07390978]
[1767916293250,6.5087,138.4,138.36,3.07390978]
[1767916294457,1.0691956,138.39,138.36,2.00000738]
[1767916297262,6.5087,138.4,138.36,2.00000738]
[1767916297966,7.5778956,138.4,138.36,2.00000738]
[1767916302259,1.0691956,138.4,138.36,2.00000738]
[1767916304162,1.0691956,138.4,138.33,6.5119]
[1767916304461,1.0691956,138.4,138.33,7.5858024]
[1767916304959,1.0691956,138.39,138.33,7.5858024]
[1767916308765,1.0691956,138.39,138.34,1.0739024]
[1767916314576,2.94388725,138.39,138.34,1.0739024]
[1767916319374,1.0691956,138.39,138.34,7.5853024]
[1767916319576,8.38359165,138.4,138.35,1.0739024]
[1767916319873,91.9082,138.42,138.36,1.0739024]
[1767916320077,2.94388725,138.43,138.36,1.0739024]
[1767916321777,9.45118725,138.43,138.37,6.5101]
[1767916321984,9.45118725,138.43,138.36,1.0739024]
[1767916322183,1.0691956,138.42,138.36,1.0739024]
[1767916323577,2.94388725,138.42,138.36,7.5844024]
[1767916324382,2.99695818,138.4,138.34,7.55410243]
[1767916327787,1.12226653,138.4,138.34,7.55410243]
[1767916328485,5.20724471,138.39,138.34,7.55410243]
[1767916328684,1.12226653,138.4,138.34,7.55410243]
[1767916328887,5.20871209,138.39,138.34,7.55410243]
[1767916329086,1.12226653,138.4,138.34,7.55410243]
[1767916329288,5.20887025,138.39,138.34,7.55410243]
[1767916329482,1.12226653,138.4,138.34,7.55410243]
[1767916329685,5.20969587,138.39,138.34,7.55410243]
[1767916329883,5.20969587,138.38,138.34,7.55410243]
[1767916330083,1.12226653,138.4,138.34,7.55410243]
[1767916330279,186.6537,138.45,138.31,17.81731868]
[1767916330280,1.04743903,138.38,138.32,1.05957763]
[1767916331288,5.21074099,138.37,138.32,1.05957763]
[1767916331590,5.21129632,138.36,138.31,6.5127]
[1767916331779,1.04743903,138.36,138.3,1.05957763]
[1767916332592,1.04743903,138.36,138.3,7.57297763]
[1767916332778,1.04743903,138.36,138.31,1.05957763]
[1767916333592,1.04743903,138.36,138.31,7.57247763]
[1767916334393,5.21189049,138.35,138.31,7.57247763]
[1767916334691,1.04743903,138.36,138.31,7.57247763]
[1767916334892,5.21192006,138.35,138.31,7.57247763]
[1767916335190,1.04743903,138.36,138.31,7.57247763]
[1767916335391,5.21137093,138.35,138.31,7.57247763]
[1767916335593,1.04743903,138.36,138.31,1.05957763]
[1767916335783,7.08707334,138.35,138.31,1.05957763]
[1767916335989,5.21207883,138.34,138.29,1.05957763]
[1767916336192,5.21207883,138.33,138.29,1.05957763]
[1767916336388,2.92213068,138.35,138.29,1.05957763]
[1767916336590,5.21099138,138.34,138.29,1.05957763]
[1767916336786,5.21099138,138.33,138.29,1.05957763]
[1767916336991,1.04743903,138.34,138.27,7.57397763]
[1767916337190,6.25841034,138.33,138.27,7.57397763]
[1767916337394,1.04743903,138.33,138.27,7.57397763]
[1767916337592,1.04743903,138.33,138.28,6.5143]
[1767916338192,6.5108,138.36,138.28,7.57387763]
[1767916338396,8.12934033,138.35,138.28,7.57387763]
[1767916338697,5.20720965,138.34,138.29,7.57337763]
[1767916340298,2.92213068,138.35,138.29,7.57337763]
[1767916340688,1.04743903,138.38,138.31,1.05957763]
[1767916340891,5.20563467,138.37,138.31,1.05957763]
[1767916341097,1.04743903,138.38,138.31,1.05957763]
[1767916341399,5.20571393,138.37,138.32,7.57197763]
[1767916341698,1.04743903,138.38,138.32,7.57197763]
[1767916341899,5.20549,138.37,138.32,7.57197763]
[1767916342098,1.04743903,138.38,138.32,7.57197763]
[1767916342299,5.2056162,138.37,138.32,7.57197763]
[1767916342600,1.04743903,138.38,138.3,7.57257763]
[1767916342798,6.25261829,138.37,138.3,7.57257763]
[1767916342990,5.20517926,138.36,138.3,7.57257763]
[1767916343196,1.04743903,138.37,138.31,1.05957763]
[1767916343396,5.20492096,138.36,138.31,1.05957763]
[1767916343692,1.04743903,138.37,138.31,7.57247763]
[1767916343890,5.2634802,138.36,138.31,7.57247763]
[1767916344096,1.04743903,138.37,138.31,7.57247763]
[1767916344295,5.26351494,138.36,138.31,7.57247763]
[1767916344497,1.04743903,138.37,138.31,7.57247763]
[1767916344698,5.2619835,138.36,138.31,7.57247763]
[1767916344897,1.04743903,138.37,138.31,7.57247763]
[1767916345198,5.26229636,138.36,138.32,7.57207763]
[1767916345394,1.87469165,138.38,138.32,7.57207763]
[1767916345596,5.2623764,138.37,138.32,7.57207763]
[1767916345902,2.92213068,138.38,138.32,7.57207763]
[1767916346106,5.26239188,138.37,138.32,7.57207763]
[1767916346402,2.92213068,138.38,138.32,7.57207763]
[1767916346602,5.26247181,138.37,138.32,7.57207763]
[1767916346802,2.92213068,138.38,138.32,7.57207763]
[1767916347100,5.26248729,138.37,138.32,7.57207763]
[1767916347403,2.92213068,138.38,138.32,7.57207763]
[1767916347602,5.2626534,138.37,138.32,7.57207763]
[1767916347804,2.92213068,138.38,138.32,7.57207763]
[1767916347991,5.26334191,138.37,138.32,7.57207763]
[1767916348192,2.92213068,138.38,138.32,7.57207763]
[1767916348396,5.26353097,138.37,138.32,7.57207763]
[1767916348597,2.92213068,138.38,138.32,7.57207763]
[1767916348802,5.26385297,138.37,138.32,7.57207763]
[1767916349003,2.92213068,138.38,138.32,7.57207763]
[1767916349204,5.26386849,138.37,138.32,7.57207763]
[1767916349400,2.92213068,138.38,138.32,7.57207763]
[1767916349598,5.26400691,138.37,138.32,7.57207763]
[1767916349796,2.92213068,138.38,138.32,7.57207763]
[1767916350002,5.26400694,138.37,138.32,7.57207763]
[1767916350305,2.92213068,138.38,138.32,7.57207763]
[1767916350499,5.26412517,138.37,138.32,7.57207763]
[1767916350703,2.92213068,138.38,138.32,7.57207763]
[1767916350903,5.26412517,138.37,138.32,7.57207763]
[1767916351102,2.92213068,138.38,138.32,7.57207763]
[1767916351302,5.26438588,138.37,138.32,7.57207763]
[1767916351504,2.92213068,138.38,138.32,7.57207763]
[1767916351809,5.26507018,138.37,138.32,7.57207763]
[1767916352007,2.92213068,138.38,138.32,7.57207763]
[1767916352195,5.264436,138.37,138.32,7.57207763]
[1767916352401,2.92213068,138.38,138.32,7.57207763]
[1767916352610,5.26450442,138.37,138.32,7.57207763]
[1767916352809,2.92213068,138.38,138.32,7.57207763]
[1767916353108,5.26450442,138.37,138.32,7.57207763]
[1767916353300,2.92213068,138.38,138.32,7.57207763]
[1767916353496,5.26453622,138.37,138.32,7.57207763]
[1767916353700,2.92213068,138.38,138.32,7.57207763]
[1767916353902,5.26453622,138.37,138.32,7.57207763]
[1767916354102,2.92213068,138.38,138.32,7.57207763]
[1767916354400,5.26477334,138.37,138.32,7.57207763]
[1767916354604,2.92213068,138.38,138.32,7.57207763]
[1767916354795,5.26487629,138.37,138.32,7.57207763]
[1767916354999,2.92213068,138.38,138.32,7.57207763]
[1767916355205,5.26488805,138.37,138.32,7.57207763]
[1767916355400,2.92213068,138.38,138.32,7.57207763]
[1767916355596,5.26791411,138.37,138.32,7.57207763]
[1767916355802,2.92213068,138.38,138.32,7.57207763]
[1767916356002,5.26793763,138.37,138.32,7.57207763]
[1767916356202,2.92213068,138.38,138.32,7.57207763]
[1767916356403,5.26798834,138.37,138.32,7.57207763]
[1767916356603,2.92213068,138.38,138.32,7.57207763]
[1767916356903,5.26764372,138.37,138.32,7.57207763]
[1767916357103,2.92213068,138.38,138.32,7.57207763]
[1767916357304,5.2682465,138.37,138.32,7.57207763]
[1767916357507,2.92213068,138.38,138.32,7.57207763]
[1767916357710,5.26865488,138.37,138.32,7.57207763]
[1767916358008,2.92213068,138.38,138.32,7.57207763]
[1767916358210,5.26865488,138.37,138.32,7.57207763]
[1767916358411,2.92213068,138.38,138.32,7.57207763]
[1767916358608,5.2686936,138.37,138.32,7.57207763]
[1767916358809,2.92213068,138.38,138.32,7.57207763]
[1767916359012,5.26839568,138.37,138.32,7.57207763]
[1767916359215,2.92213068,138.38,138.32,7.57207763]
[1767916359513,5.26841779,138.37,138.33,7.62565439]
[1767916359713,2.92213068,138.38,138.33,7.62565439]
[1767916359915,5.26841379,138.37,138.33,7.62565439]
[1767916360211,2.92213068,138.38,138.33,7.62565439]
[1767916360415,5.26846282,138.37,138.33,7.62565439]
[1767916360601,2.92213068,138.38,138.33,7.62565439]
[1767916360802,5.26847853,138.37,138.33,7.62565439]
[1767916361004,2.92213068,138.38,138.33,7.62565439]
[1767916361213,5.26847853,138.37,138.33,7.62565439]
[1767916361412,2.92213068,138.38,138.33,7.62565439]
[1767916361614,5.26853321,138.37,138.33,7.62565439]
[1767916361815,2.92213068,138.38,138.33,7.62565439]
[1767916362014,5.26853321,138.37,138.33,7.62565439]
[1767916362216,2.92213068,138.38,138.33,7.62565439]
[1767916362404,5.26859357,138.37,138.33,7.62565439]
[1767916362607,2.92213068,138.38,138.33,7.62565439]
[1767916362811,5.26825087,138.37,138.33,7.62565439]
[1767916363018,2.92213068,138.38,138.33,7.62565439]
[1767916363314,5.26788815,138.37,138.33,7.62565439]
[1767916363514,2.92213068,138.38,138.33,7.62565439]
[1767916363710,6.37355443,138.37,138.31,1.11365439]
[1767916363912,1.10625225,138.35,138.29,1.11365439]
[1767916365619,1.10625225,138.35,138.29,7.62745439]
[1767916366214,5.26728265,138.34,138.29,7.62745439]
[1767916366415,1.10625225,138.35,138.29,7.62745439]
[1767916366614,5.26719277,138.34,138.3,6.5134]
[1767916366818,1.10625225,138.35,138.3,7.62705439]
[1767916369115,1.87469165,138.36,138.3,7.62705439]
[1767916369420,5.26808957,138.35,138.3,7.62705439]
[1767916369613,1.87469165,138.36,138.3,7.62705439]
[1767916369814,5.26809972,138.35,138.3,7.62705439]
[1767916370014,1.87469165,138.36,138.3,7.62705439]
[1767916370218,5.2681193,138.35,138.3,7.62705439]
[1767916370415,5.2681193,138.34,138.3,7.62705439]
[1767916370617,1.87469165,138.36,138.3,7.62705439]
[1767916370816,5.26879883,138.35,138.3,7.62705439]
[1767916371120,5.26879883,138.34,138.3,7.62705439]
[1767916371322,1.87469165,138.36,138.3,7.62705439]
[1767916371523,5.26959391,138.35,138.3,7.62705439]
[1767916371821,5.26959391,138.34,138.3,7.62705439]
[1767916372023,1.87469165,138.36,138.3,7.62705439]
[1767916372214,5.26959391,138.35,138.3,7.62705439]
[1767916372415,5.26959391,138.34,138.3,7.62705439]
[1767916372614,1.87469165,138.36,138.3,7.62705439]
[1767916372819,5.27052799,138.35,138.3,7.62705439]
[1767916373120,5.27052799,138.34,138.3,7.62705439]
[1767916373321,1.87469165,138.34,138.3,1.11365439]
[1767916373628,5.27130732,138.33,138.3,1.11365439]
[1767916373919,2.9809439,138.34,138.28,7.62755439]
[1767916374125,1.10625225,138.31,138.25,1.11365439]
[1767916374326,2.9809439,138.31,138.25,1.11365439]
[1767916374527,5.26414991,138.3,138.25,1.11365439]
[1767916374826,2.9809439,138.31,138.25,1.11365439]
[1767916375321,2.9809439,138.31,138.26,7.62895439]
[1767916375626,1.87469165,138.31,138.27,1.11365439]
[1767916375932,1.87469165,138.35,138.29,1.11365439]
[1767916376118,5.26342458,138.34,138.29,1.11365439]
[1767916376423,5.26342458,138.33,138.29,1.11365439]
[1767916376723,4.03696729,138.37,138.3,7.62695439]
[1767916377023,5.26365696,138.36,138.3,7.62695439]
[1767916377223,5.26365696,138.35,138.3,7.62695439]
[1767916377424,5.26365696,138.34,138.3,7.62695439]
[1767916377725,4.03696729,138.37,138.3,7.62695439]
[1767916378021,5.26349092,138.36,138.3,7.62695439]
[1767916378227,5.26349092,138.35,138.3,7.62695439]
[1767916378526,5.26349092,138.34,138.3,7.62695439]
[1767916378727,4.03696729,138.37,138.3,7.62695439]
[1767916378922,5.26329984,138.36,138.3,7.62695439]
[1767916379122,5.26329984,138.35,138.3,7.62695439]
[1767916379328,5.26329984,138.34,138.3,7.62695439]
[1767916379533,4.03696729,138.37,138.3,7.62695439]
[1767916379728,5.26315284,138.36,138.3,7.62695439]
[1767916379927,5.26315284,138.35,138.3,7.62695439]
[1767916380129,5.26315284,138.34,138.3,7.62695439]
[1767916380329,4.03696729,138.37,138.3,7.62695439]
[1767916380522,5.26297708,138.36,138.3,7.62695439]
[1767916380727,5.26297708,138.35,138.3,7.62695439]
[1767916381018,7.708e-05,138.34,138.31,6.5129]
[1767916381328,1.10625225,138.36,138.31,6.5129]
[1767916383220,1.10625225,138.36,138.29,7.57215187]
[1767916383425,1.10625225,138.36,138.3,1.05835187]
[1767916386328,2.93071504,138.37,138.31,1.05835187]
[1767916386927,7.66090249,138.38,138.31,1.05835187]
[1767916387321,7.66067347,138.37,138.31,1.05835187]
[1767916392940,5.19481758,138.36,138.31,1.05835187]
[1767916393140,5.19481758,138.35,138.31,1.05835187]
[1767916393339,5.19481758,138.34,138.29,1.12845952]
[1767916393640,1.15057347,138.35,138.29,1.12845952]
[1767916393941,5.1949661,138.34,138.29,1.12845952]
[1767916394239,1.15057347,138.35,138.29,1.12845952]
[1767916394441,5.19489098,138.34,138.29,1.12845952]
[1767916394641,7.66167347,138.35,138.29,1.12845952]
[1767916394842,5.19488102,138.34,138.29,1.12845952]
[1767916395141,7.66167347,138.35,138.29,1.12845952]
[1767916395444,5.19499281,138.34,138.29,1.12845952]
[1767916395642,7.66167347,138.35,138.29,1.12845952]
[1767916395837,5.19506751,138.34,138.29,1.12845952]
[1767916396038,7.66167347,138.35,138.29,1.12845952]
[1767916396239,5.19506751,138.34,138.29,1.12845952]
[1767916396438,5.19506751,138.33,138.29,1.12845952]
[1767916396639,7.66167347,138.35,138.29,1.12845952]
[1767916396840,5.1953674,138.34,138.29,1.12845952]
[1767916397042,5.1953674,138.33,138.29,1.12845952]
[1767916397243,7.66167347,138.35,138.29,1.12845952]
[1767916397544,5.19562233,138.34,138.29,1.12845952]
[1767916397743,5.19562233,138.33,138.29,1.12845952]
[1767916397944,7.66167347,138.35,138.29,1.12845952]
[1767916398144,5.19563085,138.34,138.29,1.12845952]
[1767916398345,5.19563085,138.33,138.29,1.12845952]
[1767916398544,7.66167347,138.35,138.29,1.12845952]
[1767916398742,5.19594831,138.34,138.29,1.12845952]
[1767916398937,5.19594831,138.33,138.29,1.12845952]
[1767916399136,7.66167347,138.35,138.29,1.12845952]
[1767916399342,5.19619896,138.34,138.29,1.12845952]
[1767916399542,5.19619896,138.33,138.29,1.12845952]
[1767916399741,7.66167347,138.35,138.29,1.12845952]
[1767916399937,5.19633245,138.34,138.29,1.12845952]
[1767916400145,5.19633245,138.33,138.29,1.12845952]
[1767916400352,7.66167347,138.35,138.29,1.12845952]
[1767916400550,5.19673483,138.34,138.29,1.12845952]
[1767916400847,5.19673483,138.33,138.29,1.12845952]
[1767916401047,7.66167347,138.35,138.29,1.12845952]
[1767916401248,5.19670848,138.34,138.29,1.12845952]
[1767916401444,5.19670848,138.33,138.29,1.12845952]
[1767916401645,1.15057347,138.35,138.29,1.12845952]
[1767916401846,5.1956689,138.34,138.29,1.12845952]
[1767916402046,5.1956689,138.33,138.29,1.12845952]
[1767916402247,1.15057347,138.35,138.29,1.12845952]
[1767916402444,5.19510273,138.34,138.29,1.12845952]
[1767916402750,5.19510273,138.33,138.29,1.12845952]
[1767916402950,1.15057347,138.35,138.29,1.12845952]
[1767916403152,5.19642272,138.34,138.29,1.12845952]
[1767916403348,5.19642272,138.33,138.29,1.12845952]
[1767916403548,1.15057347,138.35,138.29,7.64225952]
[1767916403848,6.3320513,138.34,138.29,7.64225952]
[1767916404044,5.18147783,138.33,138.29,7.64225952]
[1767916405051,5.18147783,138.33,138.29,6.5138]
[1767916405251,6.3320513,138.33,138.29,6.5138]
[1767916405453,1.15057347,138.33,138.29,6.5138]
[1767916407964,1.15057347,138.35,138.29,6.5138]
[1767916408165,5.18438772,138.34,138.29,6.5138]
[1767916408365,5.18438772,138.33,138.29,6.5138]
[1767916408568,1.15057347,138.35,138.29,6.5138]
[1767916408767,5.18556351,138.34,138.29,6.5138]
[1767916408965,5.18556351,138.33,138.29,6.5138]
[1767916409168,1.15057347,138.35,138.29,6.5138]
[1767916409466,5.18562069,138.34,138.29,6.5138]
[1767916409666,5.18562069,138.33,138.29,6.5138]
[1767916409866,1.15057347,138.35,138.29,6.5138]
[1767916410066,5.18570275,138.34,138.29,6.5138]
[1767916410267,5.18570275,138.33,138.29,6.5138]
[1767916410566,1.15057347,138.35,138.29,6.5138]
[1767916410765,6.33631173,138.34,138.29,6.5138]
[1767916410966,5.18573826,138.33,138.29,6.5138]
[1767916411169,1.15057347,138.34,138.29,6.5138]
[1767916411466,5.18569449,138.33,138.29,6.5138]
[1767916411655,1.15057347,138.34,138.29,6.5138]
[1767916411860,5.18577735,138.33,138.29,6.5138]
[1767916412062,1.15057347,138.34,138.29,6.5138]
[1767916412262,5.18584323,138.33,138.29,6.5138]
[1767916412468,1.15057347,138.34,138.29,6.5138]
[1767916412666,5.18592549,138.33,138.29,6.5138]
[1767916412867,1.15057347,138.34,138.29,6.5138]
[1767916413056,5.18592549,138.33,138.29,6.5138]
[1767916413261,1.15057347,138.34,138.29,6.5138]
[1767916413462,5.18607762,138.33,138.29,6.5138]
[1767916413661,1.15057347,138.34,138.29,6.5138]
[1767916413862,5.18607762,138.33,138.29,6.5138]
[1767916414058,1.15057347,138.34,138.29,6.5138]
[1767916414270,5.18617158,138.33,138.29,6.5138]
[1767916414471,1.15057347,138.34,138.29,6.5138]
[1767916414664,5.18624967,138.33,138.29,6.5138]
[1767916414864,1.15057347,138.34,138.29,6.5138]
[1767916415059,5.18623974,138.33,138.29,6.5138]
[1767916415265,1.15057347,138.34,138.29,6.5138]
[1767916415466,5.18643749,138.33,138.29,6.5138]
[1767916415666,1.15057347,138.34,138.29,6.5138]
[1767916415866,5.18643749,138.33,138.29,6.5138]
[1767916416061,1.15057347,138.34,138.29,6.5138]
[1767916416265,5.18658602,138.33,138.29,6.5138]
[1767916416566,1.15057347,138.34,138.29,6.5138]
[1767916416766,5.18667059,138.33,138.29,6.5138]
[1767916416970,1.15057347,138.34,138.29,6.5138]
[1767916417169,5.18667059,138.33,138.29,6.5138]
[1767916417369,1.15057347,138.34,138.29,6.5138]
[1767916417569,5.18689687,138.33,138.29,6.5138]
[1767916417770,1.15057347,138.34,138.29,6.5138]
[1767916418076,5.18689687,138.33,138.29,7.63450177]
[1767916418266,1.15057347,138.34,138.29,7.63450177]
[1767916418466,5.18699961,138.33,138.29,7.63450177]
[1767916418675,1.15057347,138.34,138.29,7.63450177]
[1767916418875,5.18699964,138.33,138.29,7.63450177]
[1767916419076,1.15057347,138.34,138.29,7.63450177]
[1767916419373,5.18792208,138.33,138.29,7.63450177]
[1767916419577,5.18792208,138.32,138.29,7.63450177]
[1767916419771,1.15057347,138.34,138.29,7.63450177]
[1767916419974,5.18797097,138.33,138.29,7.63450177]
[1767916420175,7.097e-05,138.32,138.29,7.63450177]
[1767916420480,1.15057347,138.34,138.3,6.5134]
[1767916420683,1.10787073,138.36,138.3,1.12070177]
[1767916422576,1.10787073,138.36,138.31,6.5128]
[1767916425382,1.10787073,138.36,138.3,7.63410177]
[1767916428782,7.61847073,138.36,138.3,7.63410177]
[1767916436787,1.10787073,138.35,138.3,7.63410177]
[1767916454213,6.5106,138.36,138.31,1.15448057]
[1767916458113,7.62468395,138.36,138.31,1.15448057]
[1767916460528,2.98955352,138.34,138.27,7.66888057]
[1767916461222,2.98955352,138.34,138.28,1.15448057]
[1767916461617,6.5121,138.33,138.28,1.15448057]
[1767916465731,9.50115352,138.34,138.28,1.15448057]
[1767916465932,2.98955352,138.34,138.28,1.15448057]
[1767916467132,1.11408395,138.34,138.28,1.15448057]
[1767916471931,1.11408395,138.34,138.28,7.66878057]
[1767916475831,1.11408395,138.34,138.25,103.22836957]
[1767916475832,1.07939876,138.32,138.25,15.45792703]
[1767916476044,1.87546957,138.3,138.24,1.07274737]
[1767916476337,1.07939876,138.29,138.24,1.07274737]
[1767916476935,5.20811822,138.28,138.24,1.07274737]
[1767916477130,1.07939876,138.29,138.24,1.07274737]
[1767916477325,1.07939876,138.31,138.24,1.07274737]
[1767916477527,5.20539797,138.3,138.24,1.07274737]
[1767916477727,2.95486833,138.31,138.24,7.58864737]
[1767916477728,6.28479673,138.29,138.24,7.58864737]
[1767916477938,5.20539797,138.28,138.24,7.58864737]
[1767916478226,1.07939876,138.29,138.24,7.58864737]
[1767916481127,1.07939876,138.29,138.24,1.07274737]
[1767916482237,1.07939876,138.29,138.24,7.58884737]
[1767916484738,325.32525125,138.5,138.26,1.07274737]
[1767916484739,2.95486833,138.34,138.26,1.07274737]
[1767916485038,5.1949237,138.33,138.26,1.07274737]
[1767916485239,5.1949237,138.32,138.26,7.58754737]
[1767916485437,1.07939876,138.33,138.27,1.07274737]
[1767916485633,5.18992948,138.32,138.27,1.07274737]
[1767916485838,1.07939876,138.33,138.27,1.07274737]
[1767916486038,5.19026779,138.32,138.27,1.07274737]
[1767916486239,1.07939876,138.33,138.27,1.07274737]
[1767916486546,5.19012173,138.32,138.27,1.07274737]
[1767916486844,1.07939876,138.33,138.27,1.07274737]
[1767916487046,5.19003104,138.32,138.27,1.07274737]
[1767916487347,2.95486833,138.33,138.27,1.07274737]
[1767916487547,5.19007052,138.32,138.27,1.07274737]
[1767916487743,2.95486833,138.33,138.27,1.07274737]
[1767916487944,5.19007052,138.32,138.27,1.07274737]
[1767916488142,2.95486833,138.33,138.27,1.07274737]
[1767916488348,5.19007052,138.32,138.27,1.07274737]
[1767916488540,2.95486833,138.33,138.27,1.07274737]
[1767916488739,5.19022601,138.32,138.27,1.07274737]
[1767916488942,2.95486833,138.33,138.27,1.07274737]
[1767916489141,5.19022601,138.32,138.27,1.07274737]
[1767916489344,2.95486833,138.33,138.27,1.07274737]
[1767916489546,5.19039497,138.32,138.27,1.07274737]
[1767916489749,2.95486833,138.33,138.27,1.07274737]
[1767916489949,5.19039928,138.32,138.27,1.07274737]
[1767916490149,1.07939876,138.33,138.27,1.07274737]
[1767916490347,5.19039928,138.32,138.27,1.07274737]
[1767916490643,1.07939876,138.33,138.27,1.07274737]
[1767916490845,5.19058894,138.32,138.27,1.07274737]
[1767916491137,1.07939876,138.33,138.27,1.07274737]
[1767916491343,5.19058894,138.32,138.27,1.07274737]
[1767916491543,1.07939876,138.33,138.27,1.07274737]
[1767916491747,5.19079929,138.32,138.27,1.07274737]
[1767916491943,1.07939876,138.33,138.27,1.07274737]
[1767916492154,5.19079929,138.32,138.27,1.07274737]
[1767916492357,1.07939876,138.33,138.27,1.07274737]
[1767916492548,5.19069119,138.32,138.27,1.07274737]
[1767916492747,1.07939876,138.33,138.27,1.07274737]
[1767916492944,5.19067647,138.32,138.27,1.07274737]
[1767916493147,1.07939876,138.33,138.27,7.58754737]
[1767916493343,5.19067647,138.32,138.27,7.58754737]
[1767916493548,1.07939876,138.33,138.27,7.58754737]
[1767916493751,5.88091143,138.32,138.27,7.58754737]
[1767916493944,5.88091143,138.31,138.27,7.58754737]
[1767916494147,5.88091143,138.3,138.27,7.58754737]
[1767916494348,1.143e-05,138.29,138.27,7.58754737]
[1767916494547,1.07939876,138.33,138.27,7.58754737]
[1767916497358,7.59049876,138.35,138.29,1.07274737]
[1767916497556,1.07939876,138.34,138.29,1.07274737]
[1767916502657,7.59099876,138.34,138.28,6.5142]
[1767916502860,7.59099876,138.34,138.28,7.63368841]
[1767916506372,5.81431778,138.33,138.28,7.63368841]
[1767916506673,5.81431778,138.32,138.28,7.63368841]
[1767916506870,1.778e-05,138.31,138.29,1.15063759]
[1767916507070,7.239,138.46,138.34,1.15063759]
[1767916507071,1.11092856,138.41,138.34,1.15063759]
[1767916507773,1.11092856,138.41,138.35,1.15063759]
[1767916509080,1.11092856,138.41,138.35,7.66153759]
[1767916509273,1.11092856,138.41,138.35,1.15063759]
[1767916510174,1.11092856,138.41,138.32,1.15063759]
[1767916510375,1.11092856,138.39,138.32,1.15063759]
[1767916516983,1.11092856,138.41,138.35,1.15063759]
[1767916518284,1.11092856,138.4,138.33,1.15063759]
[1767916518583,1.11092856,138.39,138.31,1.15063759]
[1767916519686,1.11092856,138.38,138.31,1.15063759]